bitfinex/quotes_SOLUSD_20251118
["timestamp","ask_amount","ask_price","bid_price","bid_amount"]
[1763432735216,0.7,133.37,133.34,5.92420801]
[1763432735423,18.82096,133.37,133.33,5.92420801]
[1763432735611,18.82096,133.37,133.34,5.92420801]
[1763432735925,0.7,133.37,133.36,5.92420801]
[1763432736916,0.7,133.37,133.35,5.92420801]
[1763432737124,18.82096,133.39,133.36,5.92420801]
[1763432737345,0.7,133.38,133.36,5.92420801]
[1763432737816,0.7,133.4,133.37,5.92420801]
[1763432738525,0.7,133.4,133.29,5.92420801]
[1763432738734,18.82096,133.41,133.39,5.92420801]
[1763432739147,0.7,133.4,133.38,5.92420801]
[1763432739946,0.7,133.4,133.37,5.92420801]
[1763432740436,0.7,133.4,133.38,5.92420801]
[1763432742935,18.82096,133.4,133.3,0.21]
[1763432743132,0.72,133.39,133.36,5.92420801]
[1763432743652,0.72,133.39,133.37,5.92420801]
[1763432744929,0.72,133.39,133.29,5.92420801]
[1763432744930,18.84096,133.39,133.35,5.92420801]
[1763432745124,18.84096,133.39,133.36,5.92420801]
[1763432745324,0.72,133.38,133.36,5.92420801]
[1763432745524,9.78882769,133.44,133.37,5.92420801]
[1763432745525,18.12096,133.41,133.37,5.92420801]
[1763432745841,18.12096,133.41,133.39,5.92420801]
[1763432746017,0.72,133.41,133.4,5.92420801]
[1763432746418,0.72,133.41,133.37,5.92420801]
[1763432746647,0.72,133.41,133.36,5.92420801]
[1763432746648,18.12096,133.39,133.36,5.92420801]
[1763432746829,0.72,133.38,133.35,5.92420801]
[1763432747016,0.72,133.38,133.36,5.92420801]
[1763432747219,27.90978769,133.37,133.25,6.37534261]
[1763432747417,33.8339957,133.37,133.31,5.92420801]
[1763432747639,0.72,133.36,133.32,5.92420801]
[1763432748029,0.72,133.36,133.34,5.92420801]
[1763432748030,18.84096,133.36,133.34,5.92420801]
[1763432748231,18.84096,133.39,133.35,5.92420801]
[1763432748452,0.1,133.47,133.38,5.92420801]
[1763432748638,0.1,133.47,133.4,5.92420801]
[1763432748639,0.72,133.42,133.4,5.92420801]
[1763432749154,0.72,133.42,133.41,5.92420801]
[1763432749334,0.72,133.44,133.41,5.92420801]
[1763432749526,0.1,133.47,133.42,0.21]
[1763432749846,0.1,133.47,133.46,5.92420801]
[1763432751056,0.82,133.47,133.46,5.92420801]
[1763432751255,0.1,133.47,133.46,5.92420801]
[1763432752361,0.1,133.47,133.46,11.84841602]
[1763432752544,0.1,133.48,133.46,12.05841602]
[1763432752748,0.1,133.5,133.47,12.05841602]
[1763432752934,0.1,133.5,133.49,5.92420801]
[1763432753127,0.82,133.5,133.49,5.92420801]
[1763432753339,0.82,133.5,133.38,5.92420801]
[1763432753543,18.12096,133.48,133.38,5.92420801]
[1763432753829,18.12096,133.48,133.46,5.92420801]
[1763432754055,0.72,133.47,133.46,5.92420801]
[1763432754446,18.22096,133.5,133.46,5.92420801]
[1763432754642,0.72,133.49,133.47,5.92420801]
[1763432755048,0.1,133.5,133.48,5.92420801]
[1763432755756,0.72,133.49,133.48,5.92420801]
[1763432755928,0.72,133.49,133.47,5.92420801]
[1763432756340,0.72,133.49,133.48,5.92420801]
[1763432757060,0.72,133.49,133.47,5.92420801]
[1763432757368,0.72,133.49,133.48,5.92420801]
[1763432757756,0.72,133.49,133.47,5.92420801]
[1763432757958,0.72,133.49,133.38,5.92420801]
[1763432758136,0.72,133.49,133.43,5.92420801]
[1763432758634,0.72,133.49,133.44,5.92420801]
[1763432758831,18.22096,133.5,133.48,5.92420801]
[1763432759058,0.1,133.5,133.45,0.21]
[1763432759354,0.1,133.5,133.49,5.92420801]
[1763432760451,0.1,133.5,133.49,6.13420801]
[1763432760659,0.1,133.51,133.5,5.92420801]
[1763432761177,2.92974317,133.64,133.56,11.84841602]
[1763432761333,2.92974317,133.64,133.58,5.92420801]
[1763432761534,2.92974317,133.64,133.62,5.92420801]
[1763432761844,2.92974317,133.64,133.62,11.84841602]
[1763432762175,0.72,133.67,133.62,5.92420801]
[1763432762368,0.72,133.67,133.57,0.9586711]
[1763432762369,2.72,133.82,133.66,5.92420801]
[1763432762542,2.72,133.82,133.65,5.92420801]
[1763432762543,0.72,133.81,133.74,5.92420801]
[1763432762730,18.12096,133.79,133.74,5.92420801]
[1763432762935,0.72,133.81,133.75,9.1058098]
[1763432763132,9.1058098,133.83,133.74,9.1058098]
[1763432763133,0.72,133.8,133.74,9.1058098]
[1763432763359,0.72,133.8,133.6,9.85431279]
[1763432763360,11.1058098,133.79,133.7,9.1058098]
[1763432763569,11.1058098,133.79,133.62,0.21]
[1763432763570,0.72,133.8,133.74,9.1058098]
[1763432763770,0.72,133.79,133.62,0.21]
[1763432763973,0.72,133.79,133.71,9.1058098]
[1763432764142,0.72,133.79,133.73,9.1058098]
[1763432764341,0.72,133.79,133.7,9.1058098]
[1763432764342,9.1058098,133.78,133.7,9.1058098]
[1763432764568,2.72,133.79,133.69,9.1058098]
[1763432764750,2.72,133.79,133.6,9.3158098]
[1763432764751,18.12096,133.72,133.68,9.1058098]
[1763432765157,18.12096,133.72,133.6,0.21]
[1763432765158,0.72,133.71,133.6,0.21]
[1763432765452,18.12096,133.7,133.67,9.1058098]
[1763432765653,18.12096,133.65,133.54,0.21]
[1763432765856,9.78882769,133.64,133.59,9.1058098]
[1763432766067,18.12096,133.63,133.58,9.1058098]
[1763432766241,0.72,133.62,133.59,9.1058098]
[1763432766437,0.72,133.62,133.57,9.1058098]
[1763432766438,18.84096,133.62,133.57,9.1058098]
[1763432766677,27.90978769,133.61,133.5,9.1058098]
[1763432766846,18.12096,133.57,133.55,9.1058098]
[1763432767252,0.72,133.56,133.55,9.1058098]
[1763432767476,0.72,133.56,133.54,9.1058098]
[1763432767968,0.72,133.59,133.55,9.1058098]
[1763432768177,0.72,133.59,133.58,9.1058098]
[1763432768379,0.72,133.59,133.57,9.1058098]
[1763432768544,0.72,133.59,133.58,9.1058098]
[1763432768853,0.72,133.62,133.58,9.1058098]
[1763432769035,0.72,133.62,133.51,0.21]
[1763432769036,0.72,133.62,133.52,0.21]
[1763432769241,0.72,133.62,133.58,9.1058098]
[1763432769438,0.72,133.62,133.5,9.3158098]
[1763432769439,0.72,133.62,133.59,9.1058098]
[1763432769947,0.72,133.62,133.51,9.99882769]
[1763432769948,0.72,133.62,133.58,9.1058098]
[1763432770168,18.12096,133.6,133.57,9.1058098]
[1763432770671,0.72,133.59,133.51,0.21]
[1763432770879,0.72,133.59,133.57,9.1058098]
[1763432771094,0.72,133.59,133.58,9.1058098]
[1763432771374,9.78882769,133.66,133.58,9.1058098]
[1763432771375,0.72,133.61,133.58,9.1058098]
[1763432771683,2.0,133.71,133.58,9.1058098]
[1763432771684,0.72,133.64,133.6,18.2116196]
[1763432771855,0.72,133.64,133.63,9.1058098]
[1763432772056,0.72,133.64,133.62,9.1058098]
[1763432772469,0.72,133.64,133.63,9.1058098]
[1763432773179,0.72,133.64,133.61,9.1058098]
[1763432773565,18.84096,133.64,133.59,9.1058098]
[1763432774076,0.72,133.63,133.61,9.1058098]
[1763432774280,0.72,133.63,133.6,9.1058098]
[1763432774779,0.72,133.63,133.61,9.1058098]
[1763432775086,0.72,133.63,133.52,0.21]
[1763432775263,0.72,133.63,133.6,9.1058098]
[1763432775463,0.72,133.63,133.62,9.1058098]
[1763432776156,0.72,133.63,133.6,9.1058098]
[1763432776391,0.72,133.63,133.59,9.1058098]
[1763432776591,0.72,133.63,133.57,9.1058098]
[1763432776889,18.12096,133.58,133.54,9.1058098]
[1763432777090,18.12096,133.58,133.4,9.1058098]
[1763432777091,18.12096,133.58,133.46,0.21]
[1763432777259,0.72,133.57,133.44,0.21]
[1763432777464,18.84096,133.57,133.53,9.1058098]
[1763432777676,18.84096,133.57,133.52,9.1058098]
[1763432777859,18.84096,133.57,133.44,0.21]
[1763432777860,0.72,133.56,133.53,9.1058098]
[1763432778070,18.84096,133.56,133.52,9.1058098]
[1763432778270,0.72,133.55,133.52,9.1058098]
[1763432778582,0.72,133.55,133.46,0.21]
[1763432778786,0.72,133.55,133.52,9.1058098]
[1763432778984,0.72,133.55,133.51,9.1058098]
[1763432778985,18.12096,133.54,133.51,9.1058098]
[1763432779397,18.12096,133.5,133.46,9.1058098]
[1763432779561,18.12096,133.5,133.4,9.3158098]
[1763432779562,18.12096,133.5,133.45,9.1058098]
[1763432779887,0.7,133.49,133.45,9.1058098]
[1763432780262,18.12096,133.48,133.44,9.1058098]
[1763432780463,0.7,133.47,133.44,9.1058098]
[1763432780665,0.7,133.47,133.38,0.21]
[1763432780868,18.82096,133.47,133.43,9.1058098]
[1763432781067,0.7,133.46,133.41,9.1058098]
[1763432781481,18.12096,133.45,133.41,9.1058098]
[1763432781785,0.7,133.46,133.43,9.1058098]
[1763432781987,18.82096,133.46,133.39,0.2]
[1763432782169,18.12096,133.45,133.39,0.2]
[1763432782366,18.82096,133.45,133.39,0.2]
[1763432782572,0.7,133.44,133.41,9.1058098]
[1763432782770,0.7,133.47,133.43,9.1058098]
[1763432783083,9.1058098,133.51,133.39,0.2]
[1763432783264,18.12096,133.48,133.44,9.1058098]
[1763432783463,18.12096,133.48,133.45,9.1058098]
[1763432783786,9.78882769,133.59,133.47,9.1058098]
[1763432784109,9.78882769,133.59,133.4,9.1058098]
[1763432784110,0.7,133.53,133.52,9.1058098]
[1763432784616,0.7,133.53,133.44,0.21]
[1763432784901,0.7,133.53,133.51,9.1058098]
[1763432785102,18.82096,133.53,133.49,9.1058098]
[1763432785306,18.82096,133.53,133.5,9.1058098]
[1763432785475,0.7,133.53,133.52,9.1058098]
[1763432785661,0.7,133.53,133.51,9.1058098]
[1763432786164,0.7,133.53,133.52,9.1058098]
[1763432786380,2.0,133.64,133.52,9.1058098]
[1763432786584,0.7,133.56,133.44,9.78882769]
[1763432786893,9.1058098,133.66,133.55,9.1058098]
[1763432787089,9.1058098,133.66,133.59,9.1058098]
[1763432787294,2.7,133.68,133.58,9.1058098]
[1763432787295,18.12096,133.6,133.58,9.1058098]
[1763432787476,18.12096,133.59,133.5,9.1058098]
[1763432787676,9.78882769,133.58,133.45,0.21]
[1763432787904,10.48882769,133.58,133.45,0.21]
[1763432788082,18.82096,133.57,133.53,9.1058098]
[1763432788700,0.7,133.56,133.53,9.1058098]
[1763432789080,9.1058098,133.62,133.55,9.1058098]
[1763432789288,0.7,133.61,133.58,9.1058098]
[1763432790194,18.82096,133.61,133.58,9.1058098]
[1763432790400,18.82096,133.61,133.5,9.1058098]
[1763432790401,18.12096,133.6,133.5,9.1058098]
[1763432790571,0.7,133.6,133.55,9.1058098]
[1763432790769,2.0,133.7,133.58,9.1058098]
[1763432791013,0.7,133.69,133.62,9.1058098]
[1763432791302,18.12096,133.65,133.63,9.1058098]
[1763432791490,9.78882769,133.68,133.63,9.1058098]
[1763432791692,0.7,133.67,133.55,0.21]
[1763432791988,0.7,133.67,133.62,9.1058098]
[1763432792397,0.7,133.67,133.55,0.21]
[1763432792398,0.7,133.67,133.66,9.1058098]
[1763432792891,163.6,133.78,133.66,9.1058098]
[1763432792892,18.12096,133.7,133.66,9.1058098]
[1763432793200,0.7,133.67,133.65,9.1058098]
[1763432793396,0.7,133.67,133.66,9.1058098]
[1763432793996,0.7,133.67,133.6,9.1058098]
[1763432794190,0.7,133.67,133.63,9.1058098]
[1763432794401,0.7,133.67,133.66,9.1058098]
[1763432794783,0.7,133.67,133.65,9.1058098]
[1763432794985,0.7,133.67,133.63,9.1058098]
[1763432795609,0.7,133.67,133.64,9.1058098]
[1763432796189,0.7,133.67,133.55,0.74878322]
[1763432796190,0.7,133.67,133.65,9.1058098]
[1763432796510,0.7,133.67,133.66,9.1058098]
[1763432797087,0.7,133.7,133.66,9.1058098]
[1763432797304,0.7,133.7,133.67,9.1058098]
[1763432797810,0.7,133.7,133.69,9.1058098]
[1763432798011,0.7,133.7,133.59,0.21]
[1763432798310,0.7,133.7,133.65,9.1058098]
[1763432798311,18.12096,133.69,133.65,9.1058098]
[1763432798492,18.12096,133.69,133.6,9.1058098]
[1763432798693,0.7,133.68,133.65,9.1058098]
[1763432798905,18.12096,133.67,133.57,0.21]
[1763432799095,18.12096,133.66,133.62,9.1058098]
[1763432799407,18.12096,133.66,133.63,9.1058098]
[1763432799584,18.12096,133.66,133.53,18.12096]
[1763432799585,0.7,133.65,133.53,18.12096]
[1763432799781,0.7,133.65,133.63,9.1058098]
[1763432799996,18.82096,133.65,133.54,0.21]
[1763432800205,18.82096,133.65,133.62,9.1058098]
[1763432800405,0.7,133.64,133.62,9.1058098]
[1763432800584,0.7,133.64,133.61,9.1058098]
[1763432801006,0.7,133.64,133.62,9.1058098]
[1763432801510,0.7,133.64,133.55,0.21]
[1763432801511,0.7,133.64,133.61,9.1058098]
[1763432802087,0.7,133.64,133.62,9.1058098]
[1763432802286,0.7,133.64,133.63,9.1058098]
[1763432802488,0.7,133.64,133.52,0.21]
[1763432802796,0.7,133.64,133.47,6.83437868]
[1763432802797,18.12096,133.6,133.58,9.1058098]
[1763432803188,0.7,133.59,133.58,9.1058098]
[1763432803781,0.7,133.59,133.44,8.47756751]
[1763432803782,0.7,133.59,133.48,0.21]
[1763432803980,18.12096,133.58,133.55,9.1058098]
[1763432804200,18.12096,133.58,133.56,9.1058098]
[1763432804398,0.7,133.6,133.57,9.1058098]
[1763432804600,0.7,133.6,133.52,0.21]
[1763432804785,0.7,133.6,133.58,9.1058098]
[1763432805194,0.7,133.6,133.5,9.3158098]
[1763432805497,18.12096,133.55,133.48,0.2]
[1763432805703,18.12096,133.55,133.5,9.1058098]
[1763432805905,18.12096,133.55,133.48,0.2]
[1763432805906,0.7,133.54,133.51,9.1058098]
[1763432806105,0.7,133.54,133.5,9.1058098]
[1763432806509,18.12096,133.52,133.48,0.2]
[1763432806824,18.12096,133.52,133.47,9.1058098]
[1763432806999,0.7,133.51,133.47,9.1058098]
[1763432807392,18.82096,133.53,133.45,0.41]
[1763432807604,0.7,133.52,133.49,9.1058098]
[1763432808289,0.7,133.52,133.4,9.1058098]
[1763432808290,18.12096,133.5,133.4,9.1058098]
[1763432808492,18.12096,133.5,133.45,9.1058098]
[1763432808687,0.7,133.49,133.46,9.1058098]
[1763432808918,0.7,133.49,133.44,9.1058098]
[1763432809093,9.78882769,133.48,133.39,0.2]
[1763432809301,9.78882769,133.48,133.42,9.1058098]
[1763432809509,0.7,133.47,133.43,9.1058098]
[1763432809911,18.12096,133.45,133.42,9.1058098]
[1763432810106,18.12096,133.45,133.41,9.1058098]
[1763432810107,0.7,133.44,133.41,9.1058098]
[1763432810599,0.7,133.44,133.42,9.1058098]
[1763432811041,18.82096,133.44,133.39,0.2]
[1763432811321,18.82096,133.44,133.32,0.2]
[1763432811322,18.12096,133.38,133.32,0.2]
[1763432811625,18.12096,133.39,133.2,9.1058098]
[1763432811626,9.1058098,133.35,133.24,0.61]
[1763432811825,18.12096,133.34,133.24,0.61]
[1763432812035,18.82096,133.34,133.28,9.1058098]
[1763432812326,9.78882769,133.32,133.27,9.1058098]
[1763432812692,0.7,133.31,133.27,9.1058098]
[1763432812917,0.7,133.31,133.28,9.1058098]
[1763432813302,0.7,133.31,133.22,0.69]
[1763432813496,18.82096,133.31,133.28,9.1058098]
[1763432813890,0.7,133.31,133.29,9.1058098]
[1763432814091,18.12096,133.33,133.3,9.1058098]
[1763432814092,18.82096,133.33,133.3,9.1058098]
[1763432814543,18.89463749,133.36,133.32,9.1058098]
[1763432814544,0.7,133.36,133.32,9.1058098]
[1763432814815,0.7,133.38,133.35,9.1058098]
[1763432815018,18.82096,133.38,133.35,9.1058098]
[1763432815332,0.7,133.38,133.34,9.1058098]
[1763432815629,18.89463749,133.41,133.3,9.7958098]
[1763432815630,0.7,133.41,133.3,9.7958098]
[1763432815797,0.7,133.41,133.37,9.1058098]
[1763432816000,0.7,133.41,133.28,18.12096]
[1763432816001,27.90978769,133.39,133.27,0.69]
[1763432816211,18.12096,133.39,133.34,9.1058098]
[1763432816421,0.7,133.38,133.34,9.1058098]
[1763432816628,0.7,133.38,133.28,0.69]
[1763432816629,0.7,133.38,133.35,9.1058098]
[1763432817508,0.7,133.38,133.3,9.1058098]
[1763432817710,0.7,133.38,133.35,9.1058098]
[1763432817912,0.7,133.38,133.36,9.1058098]
[1763432818231,0.7,133.41,133.37,9.1058098]
[1763432818441,2.0,133.49,133.36,9.1058098]
[1763432818442,18.82096,133.4,133.36,9.1058098]
[1763432818740,18.82096,133.4,133.37,9.1058098]
[1763432819232,0.7,133.39,133.37,9.1058098]
[1763432820417,0.7,133.39,133.36,9.1058098]
[1763432820625,0.7,133.39,133.34,9.1058098]
[1763432820927,27.2267698,133.4,133.36,9.1058098]
[1763432820928,18.12096,133.4,133.36,9.1058098]
[1763432821103,0.7,133.39,133.35,9.1058098]
[1763432821510,9.8058098,133.39,133.33,9.1058098]
[1763432821694,9.8058098,133.39,133.3,0.69]
[1763432821695,0.7,133.39,133.34,9.1058098]
[1763432821898,0.7,133.43,133.38,9.1058098]
[1763432822125,0.7,133.51,133.42,9.1058098]
[1763432822329,0.7,133.5,133.33,9.78882769]
[1763432822533,9.1058098,133.49,133.42,9.1058098]
[1763432822724,18.12096,133.45,133.42,9.1058098]
[1763432823035,10.48882769,133.48,133.36,0.69]
[1763432823332,18.12096,133.44,133.41,9.1058098]
[1763432823627,0.7,133.47,133.43,9.1058098]
[1763432823802,0.7,133.46,133.44,9.1058098]
[1763432824129,0.7,133.46,133.38,0.69]
[1763432824130,37.01559749,133.45,133.38,9.1058098]
[1763432824746,0.7,133.44,133.41,9.1058098]
[1763432824908,0.7,133.44,133.42,5.9127048]
[1763432825110,0.7,133.44,133.41,5.9127048]
[1763432825509,0.7,133.44,133.35,0.69]
[1763432825510,0.7,133.44,133.42,5.9127048]
[1763432825814,18.12096,133.46,133.43,5.9127048]
[1763432826016,0.7,133.47,133.45,5.9127048]
[1763432826339,0.7,133.47,133.44,5.9127048]
[1763432826538,0.7,133.47,133.45,5.9127048]
[1763432826830,0.7,133.47,133.44,5.9127048]
[1763432827043,18.12096,133.46,133.43,5.9127048]
[1763432827201,0.7,133.47,133.41,5.9127048]
[1763432827402,18.12096,133.44,133.39,5.9127048]
[1763432827625,9.78882769,133.45,133.39,5.9127048]
[1763432827626,18.12096,133.42,133.39,5.9127048]
[1763432828036,0.7,133.41,133.39,5.9127048]
[1763432828408,0.7,133.44,133.4,5.9127048]
[1763432828610,0.7,133.44,133.43,5.9127048]
[1763432829135,0.7,133.44,133.42,5.9127048]
[1763432829637,5.9127048,133.49,133.43,5.9127048]
[1763432829638,0.7,133.49,133.43,5.9127048]
[1763432829798,0.7,133.49,133.46,5.9127048]
[1763432830216,0.7,133.49,133.39,0.69]
[1763432830530,0.7,133.49,133.46,5.9127048]
[1763432830716,0.7,133.49,133.47,5.9127048]
[1763432830906,0.7,133.49,133.46,5.9127048]
[1763432831110,18.82096,133.49,133.4,0.69]
[1763432831315,27.90978769,133.48,133.44,5.9127048]
[1763432831617,28.60978769,133.48,133.44,5.9127048]
[1763432831817,0.67,133.47,133.44,5.9127048]
[1763432832335,0.67,133.47,133.45,5.9127048]
[1763432832540,0.67,133.47,133.44,5.9127048]
[1763432833829,18.12096,133.45,133.35,0.72]
[1763432834034,18.12096,133.43,133.38,5.9127048]
[1763432834232,18.12096,133.41,133.36,5.9127048]
[1763432834539,10.45882769,133.4,133.34,5.9127048]
[1763432834771,16.37153249,133.4,133.33,5.9127048]
[1763432834936,18.12096,133.37,133.32,5.9127048]
[1763432835338,0.67,133.37,133.35,5.9127048]
[1763432835524,0.67,133.36,133.35,5.9127048]
[1763432835725,18.12096,133.39,133.29,5.9127048]
[1763432836030,0.67,133.39,133.37,5.9127048]
[1763432836922,0.67,133.39,133.38,5.9127048]
[1763432837255,0.67,133.43,133.38,5.9127048]
[1763432837421,0.67,133.46,133.42,5.9127048]
[1763432837624,0.67,133.46,133.38,5.9127048]
[1763432837838,0.67,133.46,133.43,5.9127048]
[1763432838026,0.67,133.46,133.44,5.9127048]
[1763432838629,0.67,133.46,133.43,5.9127048]
[1763432839057,0.67,133.46,133.4,5.9127048]
[1763432839058,18.12096,133.43,133.4,5.9127048]
[1763432839233,18.12096,133.43,133.39,5.9127048]
[1763432839543,0.66,133.42,133.4,5.9127048]
[1763432840050,0.66,133.46,133.41,5.9127048]
[1763432840228,0.66,133.46,133.43,5.9127048]
[1763432840749,5.9127048,133.52,133.45,5.9127048]
[1763432841047,5.9127048,133.52,133.46,5.9127048]
[1763432841048,9.78882769,133.49,133.46,5.9127048]
[1763432841340,9.78882769,133.49,133.39,0.66]
[1763432841516,0.66,133.48,133.45,5.9127048]
[1763432841717,0.66,133.5,133.47,5.9127048]
[1763432842134,0.66,133.52,133.49,5.9127048]
[1763432842339,0.66,133.52,133.5,5.9127048]
[1763432842932,18.78096,133.52,133.43,0.66]
[1763432843118,18.78096,133.52,133.49,5.9127048]
[1763432843446,0.66,133.51,133.38,24.0336648]
[1763432843623,27.90978769,133.5,133.46,5.9127048]
[1763432843819,27.90978769,133.5,133.39,0.66]
[1763432843820,27.90978769,133.5,133.45,5.9127048]
[1763432844049,27.90978769,133.5,133.44,5.9127048]
[1763432844050,0.66,133.49,133.44,5.9127048]
[1763432844256,9.78882769,133.48,133.44,5.9127048]
[1763432844540,0.66,133.49,133.45,5.9127048]
[1763432844760,0.66,133.48,133.45,5.9127048]
[1763432845061,0.66,133.51,133.47,5.9127048]
[1763432845223,18.12096,133.5,133.4,0.66]
[1763432845419,18.12096,133.5,133.47,5.9127048]
[1763432845732,0.66,133.49,133.47,5.9127048]
[1763432845932,0.66,133.49,133.48,5.9127048]
[1763432846357,0.66,133.49,133.47,5.9127048]
[1763432846933,0.66,133.49,133.41,0.66]
[1763432847133,0.66,133.49,133.46,5.9127048]
[1763432847643,18.78096,133.49,133.38,6.5727048]
[1763432847845,18.78096,133.49,133.45,5.9127048]
[1763432848158,9.78882769,133.51,133.46,5.9127048]
[1763432848159,0.66,133.48,133.46,5.9127048]
[1763432848526,0.66,133.48,133.39,0.66]
[1763432848823,27.90978769,133.47,133.38,5.9127048]
[1763432849149,27.90978769,133.47,133.4,5.9127048]
[1763432849150,9.78882769,133.45,133.4,5.9127048]
[1763432849648,0.66,133.44,133.42,5.9127048]
[1763432850349,0.66,133.44,133.38,5.9127048]
[1763432850350,0.66,133.44,133.37,0.66]
[1763432850542,0.66,133.44,133.42,5.9127048]
[1763432850847,0.66,133.44,133.43,5.9127048]
[1763432851025,0.66,133.46,133.43,5.9127048]
[1763432851419,0.66,133.46,133.38,5.9127048]
[1763432851650,18.12096,133.42,133.34,0.66]
[1763432851845,18.12096,133.44,133.4,5.9127048]
[1763432852025,18.78096,133.44,133.4,5.9127048]
[1763432852230,0.66,133.43,133.4,5.9127048]
[1763432852948,0.66,133.43,133.3,24.20610665]
[1763432852949,0.66,133.43,133.41,5.9127048]
[1763432853252,0.66,133.43,133.31,6.08514665]
[1763432853253,0.66,133.43,133.4,5.9127048]
[1763432853831,5.9127048,133.47,133.42,5.9127048]
[1763432853832,0.66,133.46,133.42,5.9127048]
[1763432854029,0.66,133.46,133.38,6.5727048]
[1763432854331,0.66,133.46,133.43,5.9127048]
[1763432854532,0.66,133.46,133.44,5.9127048]
[1763432854829,5.9127048,133.51,133.45,5.9127048]
[1763432854830,0.66,133.51,133.45,5.9127048]
[1763432855033,0.66,133.54,133.5,5.9127048]
[1763432855328,0.66,133.54,133.53,5.9127048]
[1763432855842,0.66,133.54,133.45,0.66]
[1763432856148,0.66,133.56,133.53,5.9127048]
[1763432856332,18.78096,133.56,133.53,5.9127048]
[1763432856534,18.78096,133.56,133.52,5.9127048]
[1763432856746,0.66,133.55,133.52,5.9127048]
[1763432856943,0.66,133.55,133.53,5.9127048]
[1763432857545,0.66,133.55,133.52,5.9127048]
[1763432857747,0.66,133.55,133.47,6.5727048]
[1763432857932,0.66,133.55,133.52,5.9127048]
[1763432858357,0.66,133.55,133.51,5.9127048]
[1763432858358,18.78096,133.55,133.51,5.9127048]
[1763432858650,0.66,133.55,133.51,5.9127048]
[1763432858855,18.12096,133.56,133.44,0.66]
[1763432858856,0.66,133.54,133.44,0.66]
[1763432859035,0.66,133.54,133.5,5.9127048]
[1763432859230,18.12096,133.56,133.53,5.9127048]
[1763432859454,0.66,133.58,133.55,5.9127048]
[1763432859848,0.66,133.58,133.56,5.9127048]
[1763432860151,18.78096,133.58,133.55,5.9127048]
[1763432860359,0.66,133.58,133.55,5.9127048]
[1763432860652,0.66,133.57,133.55,5.9127048]
[1763432861229,0.66,133.57,133.47,6.5727048]
[1763432861457,0.66,133.57,133.53,5.9127048]
[1763432861760,0.66,133.57,133.48,0.66]
[1763432862055,18.12096,133.56,133.52,5.9127048]
[1763432862428,0.7,133.55,133.47,5.9127048]
[1763432862630,0.7,133.55,133.53,5.9127048]
[1763432862827,0.7,133.55,133.54,5.9127048]
[1763432863240,0.7,133.55,133.52,5.9127048]
[1763432863648,18.12096,133.56,133.54,5.9127048]
[1763432863836,0.7,133.55,133.53,5.9127048]
[1763432864444,0.7,133.55,133.49,0.7]
[1763432864445,0.7,133.55,133.54,5.9127048]
[1763432864631,0.7,133.55,133.53,5.9127048]
[1763432864833,18.82096,133.55,133.51,5.9127048]
[1763432865036,18.82096,133.55,133.46,0.7]
[1763432865037,18.12096,133.54,133.46,0.7]
[1763432865264,18.82096,133.53,133.43,0.7]
[1763432865452,18.82096,133.53,133.49,5.9127048]
[1763432865646,9.78882769,133.57,133.43,0.7]
[1763432865647,0.7,133.52,133.47,5.9127048]
[1763432866042,18.82096,133.52,133.48,5.9127048]
[1763432866241,18.82096,133.55,133.51,5.9127048]
[1763432866473,0.7,133.54,133.52,5.9127048]
[1763432866688,0.7,133.54,133.53,5.9127048]
[1763432868072,0.7,133.54,133.52,5.9127048]
[1763432868845,0.7,133.54,133.43,0.74945664]
[1763432869161,18.12096,133.5,133.45,5.9127048]
[1763432869658,0.7,133.52,133.47,5.9127048]
[1763432869844,0.7,133.52,133.49,5.9127048]